fUSD/lending_fUSD_20250120
["ID","MTS","AMOUNT","RATE_DAILY","PERIOD"]
[349646437,1737354641993,-500.0,0.00020976,2]
[349646438,1737354642003,-533.39162499,0.00020976,2]
[349646439,1737354642014,-746.24,0.00020976,2]
[349646440,1737354642025,-500.0,0.00020976,2]
[349646441,1737354642035,-506.04968327,0.00020976,7]
[349646442,1737354642046,-506.47723261,0.00020976,2]
[349646443,1737354642199,-500.0,0.00020976,2]
[349646444,1737354642210,-500.0,0.00020976,2]
[349646445,1737354642219,-331.81579567,0.00020976,2]
[349646446,1737354642229,-775.69,0.00020976,2]
[349646447,1737354642239,-500.0,0.00020976,2]
[349646448,1737354642249,-500.0,0.00020976,2]
[349646449,1737354642260,-500.0,0.00020976,2]
[349646450,1737354642272,-1360.2,0.00020976,2]
[349646451,1737354642282,-151.0,0.00020976,2]
[349646452,1737354642291,-4149.47,0.00020976,2]
[349646453,1737354642302,-500.0,0.00020976,2]
[349646454,1737354642313,-712.75,0.00020976,2]
[349646455,1737354642323,-317.23170171,0.00020976,2]
[349646456,1737354642332,-500.0,0.00020976,2]
[349646457,1737354642342,-1844.28,0.00020976,2]
[349646458,1737354642351,-151.0,0.00020976,2]
[349646459,1737354642361,-275.381752,0.00020976,2]
[349646460,1737354642371,-451.27482127,0.00020976,2]
[349646461,1737354642380,-500.0,0.00020976,2]
[349646462,1737354642390,-699.47,0.00020976,2]
[349646463,1737354642400,-151.476641,0.00020976,2]
[349646464,1737354642410,-500.0,0.00020976,2]
[349646465,1737354642419,-2248.56,0.00020976,2]
[349646466,1737354642428,-151.0,0.00020976,2]
[349646467,1737354642438,-526.79584522,0.00020976,2]
[349646468,1737354642447,-3087.83,0.00020976,2]
[349646469,1737354642457,-500.0,0.00020976,2]
[349646470,1737354642466,-153.968922,0.00020976,2]
[349646471,1737354642476,-1111.82,0.00020976,2]
[349646472,1737354642486,-500.0,0.00020976,2]
[349646473,1737354642495,-500.0,0.00020976,2]
[349646474,1737354642505,-500.0,0.00020976,2]
[349646475,1737354642514,-155.103001,0.00020976,2]
[349646476,1737354642528,-1499.76,0.00020976,2]
[349646477,1737354642538,-657.3,0.00020976,2]
[349646478,1737354642548,-500.0,0.00020976,2]
[349646479,1737354642558,-500.0,0.00020976,2]
[349646480,1737354642568,-152.618814,0.00020976,2]
[349646481,1737354642578,-500.0,0.00020976,2]
[349646482,1737354642588,-787.09,0.00020976,2]
[349646483,1737354642597,-500.0,0.00020976,2]
[349646484,1737354642607,-500.0,0.00020976,2]
[349646485,1737354642616,-151.0,0.00020976,2]
[349646486,1737354642626,-500.0,0.00020976,2]
[349646487,1737354642635,-500.0,0.00020976,2]
[349646488,1737354642645,-774.71,0.00020976,2]
[349646489,1737354642655,-500.0,0.00020976,2]
[349646490,1737354642664,-151.0,0.00020976,2]
[349646491,1737354642674,-151.0,0.00020976,2]
[349646492,1737354642683,-500.0,0.00020976,2]
[349646493,1737354642693,-4675.59,0.00020976,2]
[349646494,1737354642702,-500.0,0.00020976,2]
[349646495,1737354642712,-198.34752935,0.00020976,2]
[349646496,1737354642723,-500.0,0.00020976,2]
[349646497,1737354642732,-154.110328,0.00020976,2]
[349646498,1737354642741,-316.12247859,0.00020976,2]
[349646499,1737354642750,-500.0,0.00020976,2]
[349646500,1737354642760,-151.0,0.00020976,2]
[349646501,1737354642771,-500.0,0.00020976,2]
[349646502,1737354642781,-500.0,0.00020976,2]
[349646503,1737354642790,-500.0,0.00020976,2]
[349646504,1737354642800,-542.96616277,0.00020976,2]
[349646505,1737354642809,-500.0,0.00020976,2]
[349646506,1737354642818,-2038.12,0.00020976,2]
[349646507,1737354642827,-500.0,0.00020976,2]
[349646508,1737354642836,-500.0,0.00020976,2]
[349646509,1737354642846,-500.0,0.00020976,2]
[349646510,1737354642857,-500.0,0.00020976,2]
[349646511,1737354642867,-500.0,0.00020976,2]
[349646512,1737354642877,-500.0,0.00020976,2]
[349646513,1737354642886,-500.0,0.00020976,2]
[349646514,1737354642895,-151.0,0.00020976,2]
[349646515,1737354642904,-500.0,0.00020976,2]
[349646516,1737354642913,-500.0,0.00020976,2]
[349646517,1737354642923,-512.16609714,0.00020976,2]
[349646518,1737354642932,-500.0,0.00020976,2]
[349646519,1737354642941,-500.0,0.00020976,2]
[349646520,1737354642951,-500.0,0.00020976,2]
[349646521,1737354642964,-500.0,0.00020976,2]
[349646522,1737354642973,-2706.952296,0.00020976,2]
[349646523,1737354642982,-500.0,0.00020976,2]
[349646524,1737354642991,-500.71739798,0.00020976,2]
[349646525,1737354643002,-2706.952296,0.00020976,2]
[349646526,1737354643011,-519.48538641,0.00020976,2]
[349646527,1737354643022,-500.0,0.00020976,2]
[349646528,1737354643031,-500.0,0.00020976,2]
[349646529,1737354643044,-500.0,0.00020976,2]
[349646530,1737354643055,-500.0,0.00020976,2]
[349646531,1737354643074,-321.677308,0.00020976,2]
[349646532,1737354643083,-500.0,0.00020976,2]
[349646533,1737354643097,-329.91435083,0.00020976,2]
[349646534,1737354643107,-321.677308,0.00020976,2]
[349646535,1737354643116,-500.0,0.00020976,2]
[349646536,1737354643126,-500.0,0.00020976,2]
[349646537,1737354643136,-500.0,0.00020976,2]
[349646538,1737354643146,-500.0,0.00020976,2]
[349646539,1737354643155,-500.0,0.00020977,2]
[349646540,1737354643165,-500.0,0.00020977,2]
[349646541,1737354643174,-500.0,0.00020977,2]
[349646542,1737354643184,-151.689178,0.00020977,2]
[349646543,1737354643193,-500.0,0.00020977,2]
[349646544,1737354643203,-500.0,0.00020977,2]
[349646545,1737354643212,-153.114298,0.00020977,2]
[349646546,1737354643222,-500.0,0.00020977,2]
[349646547,1737354643232,-500.0,0.00020977,2]
[349646548,1737354643241,-500.0,0.00020977,2]
[349646549,1737354643251,-151.466061,0.00020977,2]
[349646551,1737354643260,-505.7047262,0.00020977,2]
[349646553,1737354643271,-152.368803,0.00020977,2]
[349646555,1737354643280,-2000.0,0.00020977,2]
[349646557,1737354643290,-200.0,0.00020977,2]
[349646559,1737354643300,-151.0,0.00020977,2]
[349646562,1737354643310,-500.0,0.00020977,2]
[349646565,1737354643320,-1052.88,0.00020977,2]
[349646567,1737354643331,-151.409861,0.00020977,2]
[349646568,1737354643340,-748.47,0.00020977,2]
[349646569,1737354643350,-1732.4,0.00020977,2]
[349646570,1737354643359,-151.0,0.00020977,2]
[349646571,1737354643368,-151.0,0.00020977,2]
[349646572,1737354643377,-492.99,0.00020977,2]
[349646573,1737354643387,-1013.85,0.00020977,2]
[349646574,1737354643396,-819.06,0.00020977,2]
[349646575,1737354643405,-500.0,0.00020977,2]
[349646576,1737354643414,-507.09,0.00020977,2]
[349646577,1737354643424,-966.17,0.00020977,2]
[349646578,1737354643433,-500.0,0.00020977,2]
[349646579,1737354643443,-591.46,0.00020977,2]
[349646580,1737354643452,-500.0,0.00020977,2]
[349646581,1737354643462,-152.368259,0.00020977,2]
[349646583,1737354643472,-151.0,0.00020977,2]
[349646584,1737354643481,-151.0,0.00020977,2]
[349646586,1737354643490,-151.0,0.00020977,2]
[349646588,1737354643500,-160.409155,0.00020977,2]
[349646589,1737354643510,-151.0,0.00020977,2]
[349646590,1737354643519,-293.20164,0.00020977,2]
[349646591,1737354643529,-151.0,0.00020977,2]
[349646592,1737354643538,-151.0,0.00020977,2]
[349646593,1737354643548,-151.0,0.00020977,2]
[349646594,1737354643557,-151.0,0.00020977,2]
[349646595,1737354643567,-151.0,0.00020977,2]
[349646596,1737354643577,-2706.952296,0.00020977,2]
[349646597,1737354643586,-2706.952296,0.00020977,2]
[349646598,1737354643596,-2022.91155,0.00020977,2]
[349646599,1737354643605,-321.677308,0.00020977,2]
[349646600,1737354643615,-321.677308,0.00020977,2]
[349646601,1737354643624,-151.0,0.00020978,2]
[349646602,1737354643634,-151.0,0.00020978,2]
[349646603,1737354643643,-209.62192724,0.00020991,2]
[349646604,1737354643653,-151.0,0.00020999,2]
[349646605,1737354643662,-3879.0,0.00021,2]
[349646606,1737354643672,-79439.0,0.00021,2]
[349646607,1737354643681,-1000.0,0.00021,21]
[349646608,1737354643690,-162.148399,0.00021,2]
[349646609,1737354643699,-154.151894,0.00021,2]
[349646610,1737354643709,-151.0,0.00021,2]
[349646611,1737354643719,-151.0,0.00021,2]
[349646612,1737354643728,-151.0,0.00021,2]
[349646613,1737354643738,-151.0,0.00021,2]
[349646614,1737354643747,-151.0,0.00021,2]
[349646615,1737354643757,-153.305559,0.00021,2]
[349646616,1737354643766,-151.0,0.00021,2]
[349646617,1737354643778,-245.468179,0.00021,2]
[349646618,1737354643787,-151.0,0.00021,2]
[349646619,1737354643796,-151.0,0.00021,2]
[349646620,1737354643805,-2706.952296,0.00021,2]
[349646621,1737354643814,-2706.952296,0.00021,2]
[349646622,1737354643823,-321.677308,0.00021,2]
[349646623,1737354643834,-321.677308,0.00021,2]
[349646624,1737354643843,-154.61801275,0.00021021,2]
[349646625,1737354643852,-127028.74181368,0.0002108,2]
[349646626,1737354643876,-25034.16758352,0.0002108,2]
[349646627,1737354643887,-10210.779921,0.0002108,2]
[349646629,1737354644102,-661.05,0.0002108,2]
[349646630,1737354644113,-3343.64240173,0.0002108,2]
[349646636,1737354644165,-500.0,0.00020974,2]
[349646637,1737354644174,-2816.41833867,0.0002108,2]
[349646638,1737354644830,-310.000003,0.00020974,2]
[349646639,1737354645088,-331.529997,0.00020974,2]
[349646640,1737354645097,-340.39079459,0.00020974,2]
[349646641,1737354645109,-159.60920541,0.00020974,2]
[349646642,1737354645118,-451.47643038,0.00020974,2]
[349646643,1737354645253,-49.64363277,0.00020974,2]
[349646644,1737354645263,-340.35631823,0.00020975,2]
[349646645,1737354645287,-159.64368177,0.00020975,2]
[349646646,1737354645296,-327.845295,0.00021,2]
[349646647,1737354645306,-98335.17383324,0.0002108,2]
[349646648,1737354645315,-1000.0,0.0002108,2]
[349646649,1737354645325,-1000.0,0.0002108,2]
[349646650,1737354645334,-1000.0,0.0002108,2]
[349646651,1737354645343,-1000.0,0.0002108,2]
[349646652,1737354645353,-1000.0,0.0002108,2]
[349646653,1737354645362,-1000.0,0.0002108,2]
[349646654,1737354645371,-1000.0,0.0002108,2]
[349646655,1737354645380,-1000.0,0.0002108,2]
[349646656,1737354645390,-389.4537564,0.0002108,2]
[349646657,1737354645399,-151.0,0.0002108,2]
[349646658,1737354645408,-151.0,0.0002108,2]
[349646659,1737354645417,-151.0,0.0002108,2]
[349646660,1737354645426,-151.0,0.0002108,2]
[349646661,1737354645435,-167.938506,0.0002108,2]
[349646662,1737354645448,-151.0,0.0002108,2]
[349646663,1737354645457,-2706.952296,0.0002108,2]
[349646664,1737354645467,-2706.952296,0.0002108,2]
[349646665,1737354645475,-321.677308,0.0002108,2]
[349646666,1737354645484,-321.677308,0.0002108,2]
[349646667,1737354645493,-209.62192724,0.00021082,2]
[349646668,1737354645502,-430.0,0.00021151,2]
[349646669,1737354645512,-154.61801275,0.00021168,2]
[349646670,1737354645522,-209.62192724,0.00021173,2]
[349646671,1737354645531,-2000.0,0.00021187,2]
[349646672,1737354645540,-200.0,0.00021187,2]
[349646673,1737354645550,-150.0,0.00021194,2]
[349646674,1737354645559,-83033.04987057,0.000212,2]
[349646675,1737354645798,500.0,0.00018164,2]
[349646681,1737354646528,-357.15118505,0.00020974,2]
[349646682,1737354646537,-466.84666277,0.00020974,2]
[349646683,1737354646549,-161.43333723,0.00020974,2]
[349646684,1737354646558,-500.0,0.00020975,2]
[349646685,1737354646568,-53503.46241806,0.000212,2]
[349646686,1737354646907,-873.29459082,0.000212,2]
[349646687,1737354646987,-6592.58600001,0.000212,2]
[349646688,1737354647016,-2370.0,0.000212,2]
[349646729,1737354655148,970.0,0.000172,5]
[349646731,1737354655170,1535.6012,0.000172,5]
[349646732,1737354655191,1489.03646184,0.000172,5]
[349646733,1737354655211,1531.11241315,0.000172,5]
[349646734,1737354655233,33.24992501,0.000172,5]
[349646735,1737354655395,924.0,0.000168,3]
[349646738,1737354860614,-150.0,0.00022246,120]
[349646739,1737354860680,-150.0,0.00022808,120]
[349646740,1737354860822,765.12549501,0.00023,120]
[349646749,1737355473357,-2580.0,0.00017,9]
[349646750,1737355480236,-2230.885,0.00018,8]
[349646751,1737355483170,-9065.87098036,0.000172,2]
[349646752,1737355483191,-3267.97850753,0.000173,2]
[349646753,1737355483214,-4950.0,0.000175,5]
[349646754,1737355483235,-300.0,0.00017599,2]
[349646755,1737355483258,-500.0,0.00018164,2]
[349646756,1737355483279,-604.51819551,0.00018164,2]
[349646757,1737355483299,-490.35,0.00018451,2]
[349646758,1737355489887,-1257.0,0.000192,2]
[349646759,1737355489912,-420.0,0.0001921,2]
[349646760,1737355489938,-2385.0,0.0002,9]
[349646761,1737355493479,-600.0,0.00020356,2]
[349646762,1737355493500,-180.2,0.00020369,2]
[349646763,1737355493521,-250.0,0.00020369,2]
[349646764,1737355493542,-250.0,0.00020495,2]
[349646765,1737355493562,-490.35,0.00020715,2]
[349646766,1737355493584,-177.8473166,0.00020786,2]
[349646767,1737355520745,226.95,0.00010137,2]
[349646779,1737355758130,-226.95,0.00016813,2]
[349646780,1737355758153,-500.0,0.00018164,2]
[349646781,1737355758175,-604.51819551,0.00018164,2]
[349646782,1737355758197,-402.182674,0.00019178,7]
[349646783,1737355788982,500.0,0.00018164,2]
[349646784,1737355791217,500.0,0.00018164,2]
[349646794,1737355831806,-176.86,0.00019726,14]
[349646795,1737355831816,-176.87,0.00020072,2]
[349646796,1737355831825,-250.0,0.00020169,2]
[349646797,1737355831835,-648.76162863,0.000202,2]
[349646798,1737355831847,-19914.00243219,0.000202,2]
[349646799,1737355831862,-4771.6477165,0.000202,2]
[349646800,1737355831873,-4993.19981121,0.000202,2]
[349646801,1737355831884,-1693.29999997,0.000202,2]
[349646802,1737355831895,-1685.7994,0.000202,2]
[349646803,1737355832054,-3037.63411947,0.000202,2]
[349646804,1737355832066,-6304.73838188,0.000202,2]
[349646805,1737355832088,-333.44556521,0.000202,2]
[349646806,1737355832099,-6617.47094494,0.000202,2]
[349646807,1737355832109,-1000.0,0.00020294,2]
[349646808,1737355832119,-169.52,0.00020344,2]
[349646809,1737355832128,-600.0,0.00020356,2]
[349646810,1737355832138,-300.0,0.0002043,2]
[349646813,1737355832327,-14689.31,0.00020431,2]
[349646815,1737355832340,-507.18,0.00020588,30]
[349646817,1737355832351,-150.0,0.00020771,2]
[349646819,1737355832360,-594.74382574,0.00020786,2]
[349646821,1737355832370,-772.59114234,0.00020847,2]
[349646823,1737355832380,-154.61801275,0.00020874,2]
[349646825,1737355832390,-480.584,0.00020875,2]
[349646827,1737355832401,-772.59114234,0.00020879,2]
[349646829,1737355832412,-150.0,0.00020883,2]
[349646831,1737355832421,-772.59114234,0.00020886,2]
[349646833,1737355832432,-772.59114234,0.00020886,2]
[349646835,1737355832442,-150.0,0.00020895,2]
[349646836,1737355832452,-204.49719333,0.000209,2]
[349646837,1737355832462,-150.0,0.00020912,2]
[349646838,1737355832471,-200.0,0.0002094,2]
[349646839,1737355832481,-204.49719324,0.00020942,2]
[349646840,1737355832491,-150.0,0.00020972,2]
[349646841,1737355832500,-500.0,0.00020973,2]
[349646842,1737355832509,-503.6085769,0.00020973,2]
[349646843,1737355832519,-500.0,0.00020973,2]
[349646844,1737355832529,-515.55711945,0.00020973,2]
[349646845,1737355832539,-500.0,0.00020973,2]
[349646846,1737355832554,-500.0,0.00020973,2]
[349646847,1737355832563,-500.0,0.00020973,2]
[349646848,1737355832573,-500.0,0.00020973,2]
[349646849,1737355832582,-500.0,0.00020973,2]
[349646850,1737355832592,-500.0,0.00020973,2]
[349646851,1737355832602,-500.0,0.00020973,2]
[349646852,1737355832611,-264.05381495,0.00020973,2]
[349646853,1737355832621,-527.47229328,0.00020973,2]
[349646854,1737355832631,-322.50070724,0.00020973,2]
[349646855,1737355832640,-611.24,0.00020973,2]
[349646856,1737355832650,-500.0,0.00020973,2]
[349646857,1737355832659,-217.07672434,0.00020973,2]
[349646858,1737355832669,-500.0,0.00020973,2]
[349646859,1737355832679,-488.32144201,0.00020973,2]
[349646860,1737355832688,-500.0,0.00020973,2]
[349646861,1737355832698,-500.0,0.00020973,2]
[349646862,1737355832707,-200.0,0.00020973,2]
[349646863,1737355832717,-607.41,0.00020973,2]
[349646864,1737355832727,-500.0,0.00020973,2]
[349646865,1737355832736,-500.0,0.00020973,2]
[349646866,1737355832745,-236.77569386,0.00020973,2]
[349646867,1737355832755,-500.0,0.00020973,2]
[349646868,1737355832764,-1145.63,0.00020973,2]
[349646869,1737355832773,-1427.0,0.00020973,2]
[349646870,1737355832783,-500.0,0.00020973,2]
[349646871,1737355832792,-500.0,0.00020973,2]
[349646872,1737355832807,-1269.19,0.00020973,2]
[349646873,1737355832817,-500.0,0.00020973,2]
[349646874,1737355832826,-409.8322991,0.00020973,2]
[349646875,1737355832836,-1760.16,0.00020973,2]
[349646876,1737355832845,-1054.38,0.00020973,2]
[349646877,1737355832855,-546.06,0.00020973,2]
[349646878,1737355832864,-2016.08,0.00020973,2]
[349646879,1737355832874,-202.00102038,0.00020973,2]
[349646880,1737355832883,-1982.72,0.00020973,2]
[349646881,1737355832893,-500.0,0.00020973,2]
[349646882,1737355832903,-500.0,0.00020973,2]
[349646883,1737355832912,-502.16021359,0.00020973,2]
[349646884,1737355832921,-500.0,0.00020973,2]
[349646885,1737355832931,-2714.39,0.00020973,2]
[349646886,1737355832940,-500.0,0.00020973,2]
[349646888,1737355832949,-500.0,0.00020973,2]
[349646890,1737355832958,-695.44,0.00020973,2]
[349646892,1737355832967,-506.19805776,0.00020973,2]
[349646894,1737355832977,-500.0,0.00020973,2]
[349646896,1737355832986,-354.09213963,0.00020973,2]
[349646898,1737355832996,-500.0,0.00020973,2]
[349646900,1737355833005,-500.0,0.00020973,2]
[349646902,1737355833015,-645.69,0.00020973,2]
[349646904,1737355833024,-500.0,0.00020973,2]
[349646906,1737355833034,-1595.76,0.00020973,2]
[349646908,1737355833043,-500.0,0.00020973,2]
[349646909,1737355833060,-1407.56,0.00020973,2]
[349646911,1737355833070,-4328.29,0.00020973,2]
[349646914,1737355833080,-233.16889737,0.00020973,2]
[349646915,1737355833090,-500.0,0.00020973,2]
[349646918,1737355833100,-3493.82,0.00020973,2]
[349646920,1737355833110,-458.61931659,0.00020973,2]
[349646922,1737355833128,-45.49561298,0.00020973,2]
[349646924,1737355833139,-500.0,0.00020973,2]
[349646926,1737355833150,-1372.98,0.00020973,2]
[349646928,1737355833159,-575.68,0.00020973,2]
[349646930,1737355833170,-500.0,0.00020973,2]
[349646933,1737355833180,-705.07,0.00020973,2]
[349646936,1737355833190,-384.11392869,0.00020973,2]
[349646939,1737355833200,-551.1,0.00020973,2]
[349646942,1737355833209,-500.0,0.00020973,2]
[349646945,1737355833219,-501.03422384,0.00020973,2]
[349646947,1737355833229,-500.0,0.00020973,2]
[349646950,1737355833239,-1989.78,0.00020973,2]
[349646953,1737355833248,-500.0,0.00020973,2]
[349646957,1737355833258,-500.0,0.00020973,2]
[349646959,1737355833267,-926.39,0.00020973,2]
[349646963,1737355833277,-583.75,0.00020973,2]
[349646966,1737355833287,-1731.51,0.00020973,2]
[349646969,1737355833302,-581.9,0.00020973,2]
[349646972,1737355833311,-500.0,0.00020973,2]
[349646974,1737355833321,-973.63,0.00020973,2]
[349646977,1737355833330,-500.0,0.00020973,2]
[349646980,1737355833341,-500.0,0.00020973,2]
[349646983,1737355833352,-707.26,0.00020973,2]
[349646986,1737355833361,-500.0,0.00020973,2]
[349646989,1737355833371,-229.12133449,0.00020973,2]
[349646993,1737355833382,-2467.51866551,0.00020973,2]
[349646996,1737355833393,-4877.87,0.00020973,2]
[349646999,1737355833403,-500.0,0.00020974,2]
[349647002,1737355833413,-500.0,0.00020974,2]
[349647005,1737355833422,-715.7,0.00020974,2]
[349647008,1737355833434,-500.0,0.00020974,2]
[349647011,1737355833444,-500.0,0.00020974,2]
[349647014,1737355833453,-355.1682021,0.00020974,2]
[349647017,1737355833463,-500.0,0.00020974,2]
[349647020,1737355833472,-500.0,0.00020974,2]
[349647023,1737355833482,-500.0,0.00020974,2]
[349647026,1737355833491,-512.73076845,0.00020974,2]
[349647029,1737355833501,-501.27469147,0.00020974,2]
[349647031,1737355833510,-500.0,0.00020974,2]
[349647034,1737355833520,-500.0,0.00020974,2]
[349647037,1737355833530,-500.0,0.00020974,2]
[349647039,1737355833540,-500.0,0.00020974,2]
[349647042,1737355833554,-500.0,0.00020974,2]
[349647046,1737355833564,-875.88,0.00020974,2]
[349647049,1737355833574,-500.0,0.00020974,2]
[349647052,1737355833585,-500.0,0.00020974,2]
[349647054,1737355833595,-344.869068,0.00020974,2]
[349647055,1737355833604,-489.93809973,0.00020974,2]
[349647057,1737355833614,-500.0,0.00020974,2]
[349647060,1737355833624,-500.0,0.00020974,2]
[349647063,1737355833634,-500.0,0.00020974,2]
[349647066,1737355833644,-503.75850882,0.00020974,2]
[349647068,1737355833654,-363.10023865,0.00020974,2]
[349647070,1737355833664,-745.06,0.00020974,2]
[349647072,1737355833675,-500.0,0.00020974,2]
[349647074,1737355833684,-1354.44,0.00020974,2]
[349647076,1737355833695,-500.0,0.00020974,2]
[349647078,1737355833705,-500.0,0.00020974,2]
[349647080,1737355833715,-500.0,0.00020974,2]
[349647082,1737355833724,-1614.48,0.00020974,2]
[349647084,1737355833735,-603.94,0.00020974,2]
[349647086,1737355833746,-894.41,0.00020974,2]
[349647088,1737355833756,-500.0,0.00020974,2]
[349647090,1737355833766,-489.34124037,0.00020974,2]
[349647092,1737355833776,-715.15,0.00020974,2]
[349647094,1737355833786,-154.3206046,0.00020974,2]
[349647121,1737355834041,-497.6193954,0.00020974,2]
[349647123,1737355834055,-500.0,0.00020974,2]
[349647125,1737355834065,-500.0,0.00020974,2]
[349647127,1737355834075,-1068.14,0.00020974,2]
[349647129,1737355834085,-597.34,0.00020974,2]
[349647131,1737355834095,-500.0,0.00020974,2]
[349647133,1737355834104,-45.39302932,0.00020974,2]
[349647136,1737355834120,-687.37697068,0.00020974,2]
[349647137,1737355834130,-500.0,0.00020974,2]
[349647139,1737355834140,-582.3,0.00020974,2]
[349647141,1737355834149,-1283.5,0.00020974,2]
[349647143,1737355834159,-853.83,0.00020974,2]
[349647145,1737355834168,-500.0,0.00020974,2]
[349647147,1737355834178,-655.25,0.00020974,2]
[349647149,1737355834188,-500.0,0.00020974,2]
[349647151,1737355834198,-604.91,0.00020974,2]
[349647153,1737355834207,-500.0,0.00020974,2]
[349647155,1737355834217,-548.92,0.00020974,2]
[349647157,1737355834226,-500.0,0.00020974,2]
[349647159,1737355834236,-500.0,0.00020974,2]
[349647161,1737355834247,-1256.42,0.00020974,2]
[349647163,1737355834257,-974.3,0.00020974,2]
[349647166,1737355834268,-500.0,0.00020974,2]
[349647167,1737355834278,-500.0,0.00020974,2]
[349647169,1737355834288,-500.0,0.00020974,2]
[349647172,1737355834301,-500.0,0.00020974,2]
[349647173,1737355834311,-537.59183584,0.00020974,2]
[349647176,1737355834321,-500.0,0.00020974,2]
[349647178,1737355834332,-512.06445552,0.00020974,2]
[349647180,1737355834345,-500.0,0.00020974,2]
[349647182,1737355834355,-500.0,0.00020974,2]
[349647184,1737355834365,-504.42,0.00020974,2]
[349647186,1737355834375,-967.29,0.00020974,2]
[349647188,1737355834387,-500.0,0.00020974,2]
[349647190,1737355834397,-670.32,0.00020974,2]
[349647192,1737355834407,-500.0,0.00020974,2]
[349647194,1737355834418,-518.38,0.00020974,2]
[349647196,1737355834429,-500.0,0.00020974,2]
[349647198,1737355834440,-500.0,0.00020974,2]
[349647200,1737355834450,-500.0,0.00020974,2]
[349647202,1737355834460,-681.01,0.00020974,2]
[349647204,1737355834470,-500.0,0.00020974,2]
[349647206,1737355834481,-153.26170881,0.00020974,2]
[349647208,1737355834491,-500.0,0.00020974,2]
[349647210,1737355834500,-509.5065087,0.00020974,2]
[349647212,1737355834510,-500.0,0.00020974,2]
[349647214,1737355834520,-891.77,0.00020974,2]
[349647216,1737355834529,-648.18,0.00020974,2]
[349647218,1737355834539,-500.0,0.00020974,2]
[349647220,1737355834552,-500.0,0.00020974,2]
[349647222,1737355834561,-515.57399364,0.00020974,2]
[349647224,1737355834571,-500.0,0.00020974,2]
[349647226,1737355834580,-500.0,0.00020974,2]
[349647228,1737355834589,-528.75864495,0.00020974,2]
[349647230,1737355834598,-500.0,0.00020974,2]
[349647232,1737355834607,-1383.24,0.00020974,2]
[349647234,1737355834617,-500.0,0.00020974,2]
[349647236,1737355834626,-500.0,0.00020974,2]
[349647238,1737355834636,-500.0,0.00020974,2]
[349647240,1737355834645,-500.0,0.00020974,2]
[349647242,1737355834655,-425.42631786,0.00020974,2]
[349647244,1737355834664,-500.0,0.00020974,2]
[349647246,1737355834674,-1558.89,0.00020974,2]
[349647248,1737355834684,-500.0,0.00020974,2]
[349647250,1737355834694,-500.0,0.00020974,2]
[349647252,1737355834704,-1774.334993,0.00020974,2]
[349647254,1737355834713,-414.91158538,0.00020974,2]
[349647256,1737355834724,-500.0,0.00020974,2]
[349647258,1737355834734,-967.39,0.00020974,2]
[349647260,1737355834744,-500.0,0.00020974,2]
[349647262,1737355834753,-155.490426,0.00020974,2]
[349647264,1737355834763,-82.20383621,0.00020974,2]
[349647266,1737355834776,-417.79616379,0.00020974,2]
[349647268,1737355834786,-500.0,0.00020974,2]
[349647270,1737355834798,-500.0,0.00020974,2]